bitfinex-derivatives/quotes_BNBF0:USTF0_20250617
["timestamp","ask_amount","ask_price","bid_price","bid_amount"]
[1750189213780,1.14920304,649.32,649.29,1.225]
[1750189213981,1.14920304,649.31,649.29,1.225]
[1750189214381,1.14920304,649.32,649.29,1.225]
[1750189215378,1.14920304,649.31,649.29,1.225]
[1750189216482,1.14920304,649.32,649.29,1.225]
[1750189217178,1.14920304,649.32,649.2,1.629]
[1750189217978,1.14920304,649.31,649.2,1.629]
[1750189220286,1.53547097,649.57,649.2,1.629]
[1750189220287,1.14920304,649.39,649.2,1.629]
[1750189220488,1.14920304,649.38,649.2,1.629]
[1750189221287,1.14920304,649.39,649.2,1.629]
[1750189221484,1.14920304,649.38,649.2,1.629]
[1750189222583,1.14920304,649.37,649.2,1.629]
[1750189223188,1.14920304,649.38,649.2,1.629]
[1750189223388,1.14920304,649.37,649.2,1.629]
[1750189224084,1.14920304,649.36,649.2,1.629]
[1750189224284,1.14920304,649.37,649.2,1.629]
[1750189224485,1.14920304,649.36,649.2,1.629]
[1750189225991,1.14920304,649.35,649.2,1.629]
[1750189226184,1.14920304,649.31,649.2,1.629]
[1750189226385,1.14920304,649.29,649.2,1.629]
[1750189227585,3.83867744,650.38,649.2,1.629]
[1750189227586,1.14920304,649.28,649.2,1.629]
[1750189228089,1.14920304,649.24,649.2,1.629]
[1750189229687,1.53547097,649.33,649.2,1.629]
[1750189229886,1.14892294,649.21,649.2,1.629]
[1750189230388,1.53547097,649.32,649.2,1.629]
[1750189230592,1.1491607,649.21,649.2,1.629]
[1750189232495,1.1491607,649.22,649.2,1.629]
[1750189234495,1.1491607,649.21,649.2,1.629]
[1750189235299,2.81908642,649.33,649.2,1.629]
[1750189235497,1.28354729,649.32,649.2,1.629]
[1750189235997,1.53547097,649.31,649.2,1.629]
[1750189236399,1.53547097,649.3,649.2,1.629]
[1750189237495,1.53547097,649.29,649.2,1.629]
[1750189241403,1.53547097,649.28,649.2,1.629]
[1750189241608,1.53547097,649.29,649.2,1.629]
[1750189242409,1.53547097,649.28,649.2,1.629]
[1750189243709,1.53547097,649.27,649.2,1.629]
[1750189244411,1.53547097,649.31,649.2,1.629]
[1750189244906,1.53547097,649.33,649.2,1.629]
[1750189245311,1.53547097,649.34,648.67,2.937]
[1750189245511,1.1504498,649.19,648.67,2.937]
[1750189246307,1.1504498,649.19,648.67,1.499]
[1750189247407,1.1504498,649.18,648.67,1.499]
[1750189248606,1.1504498,649.18,648.68,1.232]
[1750189250013,1.1504498,649.18,648.68,2.482]
[1750189250808,0.26816366,649.13,648.68,2.482]
[1750189251709,1.1504498,649.19,648.68,2.482]
[1750189251914,1.1504498,649.18,648.68,2.482]
[1750189252111,1.1504498,649.17,648.68,2.482]
[1750189252314,0.26814403,649.24,648.68,2.482]
[1750189252315,1.1504498,649.18,648.68,2.482]
[1750189254015,1.1504498,649.17,648.68,2.482]
[1750189255514,1.1504498,649.16,648.69,1.135]
[1750189256515,1.1504498,649.15,648.69,1.135]
[1750189258516,1.1504498,649.14,648.69,1.135]
[1750189259321,1.1504498,649.13,648.69,1.135]
[1750189261718,1.1504498,649.12,648.69,1.135]
[1750189262518,1.1504498,649.11,648.69,1.135]
[1750189264221,1.1504498,649.14,648.69,1.135]
[1750189264421,1.1504498,649.12,648.69,1.135]
[1750189266423,1.1504498,649.11,648.69,1.135]
[1750189267823,1.1504498,649.08,648.69,1.135]
[1750189268225,1.1504498,649.04,648.69,1.135]
[1750189268421,1.1504498,649.02,648.69,1.135]
[1750189269322,1.1504498,649.01,648.69,1.135]
[1750189270922,1.1504498,648.99,648.69,1.135]
[1750189272323,1.1504498,649.0,648.69,1.135]
[1750189272522,1.1504498,649.01,648.69,1.135]
[1750189273420,1.1504498,649.0,648.69,1.135]
[1750189273623,1.1504498,649.01,648.69,1.135]
[1750189274423,1.1504498,649.0,648.69,1.135]
[1750189275428,1.1504498,648.99,648.69,1.135]
[1750189276524,1.1504498,649.0,648.69,1.135]
[1750189278025,1.1504498,648.96,648.69,1.135]
[1750189278221,1.1504498,648.95,648.69,1.135]
[1750189278625,1.1504498,648.9,648.69,1.135]
[1750189278826,1.1504498,648.88,648.69,1.135]
[1750189279027,1.1504498,648.89,648.69,1.135]
[1750189279328,1.1504498,648.88,648.69,1.135]
[1750189279524,1.1504498,648.87,648.69,1.135]
[1750189279729,1.1504498,648.83,648.69,1.135]
[1750189279929,1.1504498,648.82,648.69,1.135]
[1750189280125,1.1504498,648.81,648.69,1.135]
[1750189280529,1.1504498,648.8,648.69,1.135]
[1750189280727,1.1504498,648.82,648.69,1.135]
[1750189281530,1.1504498,648.83,648.68,1.232]
[1750189282729,1.1504498,648.84,648.68,1.232]
[1750189283730,1.1504498,648.85,648.68,1.232]
[1750189284535,1.1504498,648.86,648.68,1.232]
[1750189284835,1.1504498,648.87,648.68,1.232]
[1750189285237,1.1504498,648.88,648.68,1.232]
[1750189286437,1.1504498,648.89,648.68,1.232]
[1750189288440,1.1504498,648.91,648.68,1.232]
[1750189288735,1.1504498,648.92,648.68,1.232]
[1750189289137,1.1504498,648.93,648.68,1.232]
[1750189289439,1.1504498,648.94,648.68,1.232]
[1750189290435,1.1504498,648.95,648.68,1.232]
[1750189290837,1.1504498,648.96,648.68,1.232]
[1750189291637,1.1504498,648.97,648.68,1.232]
[1750189293837,1.1504498,648.98,648.68,1.232]
[1750189294142,1.1504498,648.99,648.68,1.232]
[1750189294442,1.1504498,648.97,648.68,1.232]
[1750189294749,1.1504498,648.95,648.68,1.232]
[1750189296039,1.1504498,648.97,648.68,1.232]
[1750189297139,1.1504498,648.98,648.68,1.232]
[1750189297642,1.1504498,648.98,648.57,1.121]
[1750189298245,1.1504498,648.97,648.57,1.121]
[1750189299943,1.1504498,649.01,648.57,1.121]
[1750189300948,1.1504498,649.02,648.57,1.121]
[1750189301147,1.1504498,649.02,648.58,1.216]
[1750189302254,1.1504498,649.01,648.58,1.216]
[1750189302848,1.1504498,649.02,648.58,1.216]
[1750189303052,1.1504498,649.01,648.58,1.216]
[1750189303652,1.1504498,649.01,648.59,1.236]
[1750189306150,1.1504498,648.99,648.59,1.236]
[1750189310159,1.1504498,648.98,648.59,1.236]
[1750189310656,1.1504498,648.99,648.6,1.19]
[1750189311160,1.1504498,648.98,648.6,1.19]
[1750189311360,1.1504498,648.99,648.6,1.19]
[1750189311558,1.1504498,648.97,648.6,1.19]
[1750189311961,1.1504498,648.99,648.6,1.19]
[1750189312562,1.1504498,649.01,648.6,1.19]
[1750189313062,1.1504498,649.02,648.6,1.19]
[1750189313662,1.1504498,649.01,648.6,1.19]
[1750189314057,1.1504498,649.03,648.6,1.19]
[1750189314262,1.1504498,649.02,648.6,1.19]
[1750189316258,1.1504498,649.01,648.6,1.19]
[1750189319865,1.1504498,649.03,648.6,1.19]
[1750189320261,1.1504498,649.03,648.61,1.582]
[1750189320465,1.1504498,649.07,648.61,1.582]
[1750189320866,1.1504498,649.06,648.61,1.582]
[1750189321263,1.1504498,649.07,648.61,1.582]
[1750189321966,1.1504498,649.08,648.61,1.582]
[1750189322562,1.1504498,649.07,648.61,1.582]
[1750189323166,1.1504498,649.08,648.61,1.582]
[1750189323667,1.1504498,649.11,648.61,1.582]
[1750189323966,1.1504498,649.14,648.61,1.582]
[1750189324267,1.1504498,649.13,648.61,1.582]
[1750189325366,1.1504498,649.11,648.61,1.582]
[1750189325767,1.1504498,649.09,648.61,1.582]
[1750189326062,1.1504498,649.1,648.61,1.582]
[1750189326265,1.1504498,649.09,648.61,1.582]
[1750189326667,1.1504498,649.06,648.61,1.582]
[1750189327765,1.1504498,649.05,648.61,1.582]
[1750189332566,1.1504498,649.04,648.61,1.582]
[1750189333567,1.1504498,649.01,648.61,1.582]
[1750189335369,1.1504498,649.01,648.62,1.689]
[1750189335773,1.1504498,649.01,648.63,1.438]
[1750189338371,1.1504498,649.02,648.63,1.438]
[1750189339774,1.1504498,649.03,648.63,1.438]
[1750189339976,1.1504498,649.05,648.63,1.438]
[1750189340175,1.1504498,649.06,648.63,1.438]
[1750189341172,1.1504498,649.07,648.63,1.438]
[1750189341578,1.1504498,649.06,648.63,1.438]
[1750189341876,1.1504498,649.08,648.63,1.438]
[1750189342274,1.1504498,649.09,648.63,1.438]
[1750189344178,1.1504498,649.1,648.63,1.438]
[1750189344675,1.1504498,649.09,648.63,1.438]
[1750189346483,1.1504498,649.08,648.63,1.438]
[1750189349581,1.1504498,649.07,648.63,1.438]
[1750189351587,1.1504498,649.08,648.63,1.438]
[1750189351788,1.1504498,649.07,648.63,1.438]
[1750189352791,1.1504498,649.06,648.63,1.438]
[1750189353190,1.1504498,649.05,648.63,1.438]
[1750189353693,1.1504498,649.04,648.63,1.438]
[1750189354390,1.1504498,649.01,648.63,1.438]
[1750189354589,1.1504498,649.0,648.63,1.438]
[1750189355193,1.1504498,648.99,648.63,1.438]
[1750189355389,1.1504498,649.0,648.63,1.438]
[1750189356591,1.1504498,648.99,648.63,1.438]
[1750189356791,1.1504498,648.98,648.63,1.438]
[1750189358697,1.1504498,648.97,648.63,1.438]
[1750189359796,1.1504498,648.98,648.63,1.438]
[1750189359994,1.1504498,648.98,648.64,1.467]
[1750189363401,1.1504498,648.97,648.64,1.467]
[1750189364302,1.1504498,648.97,648.65,1.144]
[1750189365701,1.1504498,648.96,648.65,1.144]
[1750189367203,1.1504498,648.95,648.65,1.144]
[1750189367697,1.1504498,648.96,648.65,1.144]
[1750189367896,1.1504498,648.97,648.65,1.144]
[1750189368095,1.1504498,648.96,648.65,1.144]
[1750189368701,1.1504498,648.97,648.65,1.144]
[1750189371806,1.1504498,648.98,648.65,1.144]
[1750189373607,1.1504498,648.97,648.65,1.144]
[1750189377904,1.1504498,649.01,648.65,1.144]
[1750189378308,1.1504498,649.02,648.65,1.144]
[1750189380108,0.26814403,649.24,648.65,1.144]
[1750189380109,1.1504498,649.03,648.65,1.144]
[1750189380905,1.1504498,649.04,648.65,1.144]
[1750189381311,1.1504498,649.02,648.65,1.144]
[1750189381511,1.1504498,649.04,648.65,1.144]
[1750189382506,1.1504498,649.05,648.66,1.659]
[1750189384112,1.1504498,649.04,648.66,1.659]
[1750189384511,1.1504498,649.03,648.66,1.659]
[1750189384712,1.1504498,649.02,648.66,1.659]
[1750189385006,1.1504498,649.01,648.66,1.659]
[1750189385207,1.1504498,649.03,648.66,1.659]
[1750189385411,1.1504498,649.0,648.66,1.659]
[1750189386813,1.1504498,648.99,648.66,1.659]
[1750189387717,1.1504498,648.98,648.66,1.659]
[1750189388114,1.1504498,648.99,648.66,1.659]
[1750189388313,1.1504498,649.0,648.66,1.659]
[1750189389116,1.1504498,649.01,648.66,1.659]
[1750189389413,1.1504498,649.0,648.66,1.659]
[1750189390417,1.1504498,649.0,648.67,1.438]
[1750189393518,1.1504498,648.99,648.67,1.438]
[1750189393720,1.1504498,648.95,648.67,1.438]
[1750189396218,1.1504498,648.94,648.67,1.438]
[1750189400723,1.1504498,648.95,648.67,1.438]
[1750189402825,1.1504498,648.96,648.67,1.438]
[1750189404422,1.1504498,648.95,648.67,1.438]
[1750189405122,1.1504498,648.96,648.67,1.438]
[1750189405422,1.1504498,648.95,648.67,1.438]
[1750189405626,1.1504498,648.96,648.67,1.438]
[1750189406827,1.1504498,648.97,648.67,1.438]
[1750189408427,1.1504498,648.97,648.66,1.659]
[1750189409026,2.30320646,649.21,648.66,1.659]
[1750189409225,1.77117124,649.2,648.66,1.659]
[1750189409425,1.15424639,648.99,648.66,1.659]
[1750189409629,1.15424639,649.0,648.66,1.659]
[1750189410325,1.15424639,649.01,648.66,1.659]
[1750189410531,1.15424639,649.0,648.66,1.659]
[1750189410729,1.15424639,649.0,648.67,1.213]
[1750189411027,1.15418059,649.0,648.67,1.213]
[1750189411427,1.15418059,648.99,648.67,1.213]
[1750189412132,1.15418059,648.98,648.67,1.213]
[1750189412332,1.15418059,648.97,648.67,1.213]
[1750189412532,1.15418059,648.98,648.67,1.213]
[1750189412732,1.15418059,648.97,648.67,1.213]
[1750189416537,1.15418059,648.91,648.67,1.213]
[1750189417134,1.15418059,648.91,648.68,1.663]
[1750189419039,1.15418059,648.93,648.68,1.663]
[1750189419435,1.15418059,648.94,648.68,1.663]
[1750189421141,1.15418059,648.94,648.69,1.1]
[1750189423644,1.15418059,648.93,648.69,1.1]
[1750189424751,1.15418059,648.95,648.69,1.1]
[1750189425050,1.15418059,648.96,648.69,1.1]
[1750189425651,1.15418059,648.97,648.69,1.1]
[1750189426353,1.15418059,648.96,648.69,1.1]
[1750189426952,1.15418059,648.97,648.69,1.1]
[1750189427250,1.15418059,648.99,648.69,1.1]
[1750189427951,1.15418059,649.0,648.69,1.1]
[1750189428153,1.15418059,649.0,648.7,1.438]
[1750189428854,1.15418059,648.99,648.7,1.438]
[1750189429452,0.26814403,649.24,648.7,1.438]
[1750189429453,1.15418059,649.0,648.7,1.438]
[1750189429850,1.15418059,649.01,648.7,1.438]
[1750189430155,1.15418059,649.02,648.7,1.438]
[1750189430953,1.15418059,649.04,648.7,1.438]
[1750189432557,1.15418059,649.05,648.7,1.438]
[1750189432959,1.15418059,649.04,648.7,1.438]
[1750189433258,1.15418059,649.06,648.7,1.438]
[1750189433459,1.15418059,649.08,648.7,1.438]
[1750189435558,1.15418059,649.09,648.7,1.438]
[1750189438567,1.15418059,649.1,648.7,1.438]
[1750189439067,1.15418059,649.09,648.7,1.438]
[1750189439266,1.15418059,649.1,648.7,1.438]
[1750189439965,1.15418059,649.08,648.7,1.438]
[1750189440765,1.15418059,649.07,648.7,1.438]
[1750189443268,1.15418059,649.07,648.69,1.1]
[1750189443468,1.15418059,649.06,648.69,1.1]
[1750189444766,1.15418059,649.08,648.69,1.1]
[1750189444966,1.15418059,649.08,648.7,1.514]
[1750189446368,1.15418059,649.06,648.7,1.514]
[1750189447369,1.15418059,649.06,648.71,1.438]
[1750189450072,1.15418059,649.06,648.72,1.065]
[1750189451069,1.15418059,649.07,648.72,1.065]
[1750189451871,1.15418059,649.08,648.72,1.065]
[1750189452071,1.15418059,649.1,648.72,1.065]
[1750189453470,1.00600214,649.09,648.72,1.065]
[1750189453673,1.00600214,649.08,648.72,1.065]
[1750189453876,1.00600214,649.07,648.72,1.065]
[1750189454171,1.00600214,649.06,648.72,1.065]
[1750189454376,1.00600214,649.05,648.72,1.065]
[1750189454577,1.00600214,649.04,648.72,1.065]
[1750189454776,0.26815642,649.2,648.72,1.065]
[1750189454777,1.00600214,649.03,648.72,1.065]
[1750189454976,1.00600214,649.02,648.72,1.065]
[1750189455176,1.00600214,649.01,648.72,1.065]
[1750189455475,1.00600214,649.0,648.72,1.065]
[1750189455679,1.00600214,648.99,648.72,1.065]
[1750189455873,1.00600214,648.98,648.72,1.065]
[1750189456078,1.00600214,648.97,648.72,1.065]
[1750189456275,1.00600214,648.96,648.72,1.065]
[1750189456476,1.00600214,648.95,648.72,1.065]
[1750189456675,1.00600214,648.94,648.72,1.065]
[1750189456879,1.00600214,648.93,648.72,1.065]
[1750189457077,1.00600214,648.92,648.72,1.065]
[1750189457380,1.00600214,648.91,648.72,1.065]
[1750189457580,1.00600214,648.9,648.72,1.065]
[1750189457777,1.00600214,648.89,648.72,1.065]
[1750189458081,1.00600214,648.88,648.72,1.065]
[1750189458378,1.15418059,649.09,648.72,1.065]
[1750189458584,1.00590897,649.08,648.72,1.065]
[1750189458782,1.00590897,649.07,648.72,1.065]
[1750189458978,1.00590897,649.06,648.72,1.065]
[1750189459179,1.00590897,649.05,648.72,1.065]
[1750189459382,1.00590897,649.04,648.72,1.065]
[1750189459582,1.00590897,649.03,648.72,1.065]
[1750189459777,1.00590897,649.02,648.72,1.065]
[1750189459981,1.00590897,649.01,648.72,1.065]
[1750189460180,1.00590897,649.0,648.72,1.065]
[1750189460381,1.00590897,648.99,648.72,1.065]
[1750189460687,1.00590897,648.98,648.72,1.065]
[1750189460985,1.15418059,649.15,648.72,1.065]
[1750189460986,1.00590897,648.97,648.72,1.065]
[1750189461284,1.00590897,648.96,648.72,1.065]
[1750189461580,1.00590897,648.95,648.72,1.065]
[1750189461781,1.00590897,648.94,648.72,1.065]
[1750189461984,1.15418059,649.17,648.72,1.065]
[1750189462183,2.15989991,649.16,648.71,1.438]
[1750189462383,1.00571932,649.15,648.71,1.438]
[1750189462580,1.00571932,649.14,648.71,1.438]
[1750189462783,1.00571932,649.13,648.71,1.438]
[1750189462987,1.00571932,649.12,648.71,1.438]
[1750189463184,1.00571932,649.11,648.71,1.438]
[1750189463482,1.00571932,649.1,648.71,1.438]
[1750189463682,1.00571932,649.09,648.71,1.438]
[1750189463882,1.00571932,649.08,648.71,1.438]
[1750189464086,1.00571932,649.07,648.71,1.438]
[1750189464386,1.00571932,649.06,648.71,1.438]
[1750189464583,1.00571932,649.05,648.71,1.438]
[1750189464886,1.00571932,649.04,648.72,1.265]
[1750189465086,1.00571932,649.03,648.72,1.265]
[1750189465386,1.00571932,649.02,648.72,1.265]
[1750189465582,1.00571932,649.01,648.72,1.265]
[1750189465786,1.00571932,649.0,648.72,1.265]
[1750189466087,1.00571932,648.99,648.72,1.265]
[1750189466283,1.00571932,648.98,648.72,1.265]
[1750189466585,1.00571932,648.97,648.72,1.265]
[1750189466786,1.00571932,648.96,648.72,1.265]
[1750189466986,1.00571932,648.95,648.72,1.265]
[1750189467186,1.15418059,649.17,648.72,1.265]
[1750189467385,1.00536402,649.16,648.72,1.265]
[1750189467584,1.00536402,649.15,648.72,1.265]
[1750189467782,1.00536402,649.14,648.72,1.265]
[1750189467983,1.00536402,649.13,648.72,1.265]
[1750189468284,1.00536402,649.12,648.72,1.265]
[1750189468482,1.00536402,649.11,648.72,1.265]
[1750189468686,1.00536402,649.1,648.72,1.265]
[1750189468884,1.00536402,649.09,648.72,1.265]
[1750189469087,1.00536402,649.08,648.72,1.265]
[1750189469383,1.00536402,649.07,648.72,1.265]
[1750189469583,1.00536402,649.06,648.72,1.265]
[1750189469885,1.00536402,649.05,648.72,1.265]
[1750189470184,1.00536402,649.04,648.72,1.265]
[1750189470384,1.00536402,649.03,648.72,1.265]
[1750189470684,1.15418059,649.33,648.72,1.265]
[1750189470889,1.00494778,649.32,648.72,1.265]
[1750189471088,1.00494778,649.31,648.72,1.265]
[1750189471285,1.00494778,649.3,648.72,1.265]
[1750189471484,1.00494778,649.29,648.72,1.265]
[1750189471688,1.00494778,649.28,648.72,1.265]
[1750189471886,1.00494778,649.27,648.72,1.265]
[1750189472085,1.00494778,649.26,648.72,1.265]
[1750189472384,1.00494778,649.25,648.72,1.265]
[1750189472590,1.00494778,649.24,648.72,1.265]
[1750189472789,1.00494778,649.23,648.72,1.265]
[1750189473085,1.00494778,649.22,648.72,1.265]
[1750189473285,1.00494778,649.21,648.72,1.265]
[1750189473485,1.00494778,649.2,648.72,1.265]
[1750189473684,1.00494778,649.19,648.72,1.265]
[1750189473889,1.00494778,649.18,648.72,1.265]
[1750189474086,1.00494778,649.17,648.72,1.265]
[1750189474287,1.00494778,649.16,648.72,1.265]
[1750189474489,1.00494778,649.15,648.72,1.265]
[1750189474690,1.00494778,649.14,648.72,1.265]
[1750189474887,1.00494778,649.13,648.72,1.265]
[1750189475188,1.00494778,649.12,648.72,1.265]
[1750189475387,1.00494778,649.11,648.72,1.265]
[1750189475591,1.00494778,649.1,648.72,1.265]
[1750189475887,1.00494778,649.09,648.73,1.42]
[1750189476090,1.00494778,649.08,648.73,1.42]
[1750189476290,1.00494778,649.07,648.73,1.42]
[1750189476487,1.00494778,649.06,648.73,1.42]
[1750189476790,1.00494778,649.05,648.73,1.42]
[1750189477090,1.42230602,649.36,648.73,1.42]
[1750189477290,2.15831168,649.35,648.73,1.42]
[1750189477490,1.00413109,649.34,648.73,1.42]
[1750189477690,1.00413109,649.33,648.73,1.42]
[1750189477886,1.00413109,649.32,648.73,1.42]
[1750189478083,1.00413109,649.31,648.73,1.42]
[1750189478289,1.00413109,649.3,648.73,1.42]
[1750189478487,1.00413109,649.29,648.73,1.42]
[1750189478691,1.00413109,649.28,648.73,1.42]
[1750189478892,1.00413109,649.27,648.74,1.415]
[1750189479190,1.00413109,649.26,648.74,1.415]
[1750189479386,1.00413109,649.25,648.74,1.415]
[1750189479588,1.00413109,649.24,648.74,1.415]
[1750189479791,1.00413109,649.23,648.74,1.415]
[1750189480091,1.00413109,649.22,648.74,1.415]
[1750189480291,1.00413109,649.21,648.74,1.415]
[1750189480489,1.00413109,649.2,648.74,1.415]
[1750189480693,1.00413109,649.19,648.74,1.415]
[1750189480889,1.00413109,649.18,648.74,1.415]
[1750189481095,1.00413109,649.17,648.74,1.415]
[1750189481292,1.00413109,649.16,648.74,1.415]
[1750189482591,1.00413109,649.1,648.74,1.415]
[1750189482792,1.00413109,649.09,648.74,1.415]
[1750189482996,1.00413109,649.08,648.74,1.415]
[1750189483198,1.15418059,649.3,648.74,1.415]
[1750189483491,1.0042053,649.29,648.74,1.415]
[1750189483696,1.0042053,649.28,648.74,1.415]
[1750189483897,1.0042053,649.27,648.74,1.415]
[1750189484193,1.0042053,649.26,648.74,1.415]
[1750189484496,1.0042053,649.25,648.74,1.415]
[1750189484694,1.0042053,649.24,648.74,1.415]
[1750189484897,1.0042053,649.23,648.74,1.415]
[1750189485095,1.0042053,649.22,648.74,1.415]
[1750189485299,1.0042053,649.21,648.74,1.415]
[1750189485494,1.0042053,649.2,648.74,1.415]
[1750189485696,1.0042053,649.19,648.74,1.415]
[1750189485894,1.0042053,649.18,648.74,1.415]
[1750189486199,1.0042053,649.17,648.74,1.415]
[1750189486499,1.0042053,649.16,648.74,1.415]
[1750189486799,1.0042053,649.15,648.74,1.415]
[1750189487095,1.0042053,649.14,648.74,1.415]
[1750189487299,1.0042053,649.13,648.74,1.415]
[1750189487495,1.0042053,649.12,648.74,1.415]
[1750189487694,1.0042053,649.11,648.74,1.415]
[1750189487899,1.0042053,649.1,648.74,1.415]
[1750189488095,1.0042053,649.09,648.74,1.415]
[1750189488298,1.0042053,649.08,648.74,1.415]
[1750189488495,1.0042053,649.07,648.74,1.415]
[1750189488696,1.0042053,649.06,648.74,1.415]
[1750189488896,1.15418059,649.33,648.74,1.415]
[1750189489198,1.00430421,649.32,648.74,1.415]
[1750189489497,1.00430421,649.31,648.74,1.415]
[1750189489697,1.00430421,649.3,648.74,1.415]
[1750189489901,1.00430421,649.29,648.74,1.415]
[1750189490101,1.00430421,649.28,648.74,1.415]
[1750189490298,1.00430421,649.27,648.74,1.415]
[1750189490498,1.00430421,649.26,648.74,1.415]
[1750189490697,1.00430421,649.25,648.74,1.415]
[1750189490898,1.00430421,649.24,648.74,1.415]
[1750189491097,1.00430421,649.23,648.74,1.415]
[1750189491398,0.26812543,649.36,648.74,1.415]
[1750189491399,1.00430421,649.22,648.74,1.415]
[1750189491602,1.00430421,649.21,648.74,1.415]
[1750189491801,1.00430421,649.2,648.74,1.415]
[1750189492001,1.00430421,649.19,648.74,1.415]
[1750189492203,1.00430421,649.18,648.74,1.415]
[1750189492400,1.00430421,649.17,648.74,1.415]
[1750189492604,1.00430421,649.16,648.74,1.415]
[1750189492905,1.00430421,649.15,648.74,1.415]
[1750189493103,1.00430421,649.14,648.74,1.415]
[1750189493304,1.00430421,649.13,648.74,1.415]
[1750189493502,1.00430421,649.12,648.74,1.415]
[1750189493707,1.00430421,649.11,648.74,1.415]
[1750189494003,1.00430421,649.1,648.74,1.415]
[1750189494203,1.00430421,649.09,648.74,1.415]
[1750189494401,1.00430421,649.08,648.74,1.415]
[1750189494602,1.00430421,649.07,648.74,1.415]
[1750189494805,1.00430421,649.06,648.74,1.415]
[1750189495008,1.15418059,649.33,648.74,1.415]
[1750189495204,1.00426995,649.32,648.74,1.415]
[1750189495509,1.00426995,649.31,648.74,1.415]
[1750189495709,1.00426995,649.3,648.74,1.415]
[1750189495906,1.00426995,649.29,648.74,1.415]
[1750189496106,1.00426995,649.28,648.74,1.415]
[1750189496306,1.00426995,649.27,648.74,1.415]
[1750189496505,1.00426995,649.26,648.74,1.415]
[1750189496708,1.00426995,649.25,648.74,1.415]
[1750189496906,1.00426995,649.24,648.74,1.415]
[1750189497107,1.00426995,649.23,648.74,1.415]
[1750189497410,1.00426995,649.22,648.75,1.043]
[1750189497707,1.00426995,649.21,648.75,1.043]
[1750189498007,1.00426995,649.2,648.75,1.043]
[1750189498210,1.00426995,649.19,648.75,1.043]
[1750189498508,1.00426995,649.18,648.75,1.043]
[1750189498806,1.00426995,649.17,648.75,1.043]
[1750189499109,1.00426995,649.16,648.75,1.043]
[1750189499308,1.00426995,649.15,648.75,1.043]
[1750189499509,1.00426995,649.14,648.75,1.043]
[1750189499707,1.00426995,649.13,648.75,1.043]
[1750189499907,1.00426995,649.12,648.75,1.043]
[1750189500207,1.00426995,649.11,648.75,1.043]
[1750189500410,1.00423637,649.1,648.75,1.043]
[1750189500609,1.15418059,649.29,648.75,1.043]
[1750189500809,2.15841696,649.28,648.75,1.043]
[1750189501012,1.00423637,649.27,648.75,1.043]
[1750189501210,1.00423637,649.26,648.75,1.043]
[1750189501410,1.00423637,649.25,648.75,1.043]
[1750189501712,1.00423637,649.24,648.75,1.043]
[1750189501913,1.00423637,649.23,648.75,1.043]
[1750189502109,1.00423637,649.22,648.75,1.043]
[1750189502313,1.00423637,649.21,648.75,1.043]
[1750189502613,1.00423637,649.2,648.75,1.043]
[1750189502813,1.00423637,649.19,648.75,1.043]
[1750189503113,1.00423637,649.18,648.75,1.043]
[1750189503308,1.00423637,649.17,648.75,1.043]
[1750189503509,0.26812543,649.36,648.75,1.043]
[1750189503510,1.00423637,649.16,648.75,1.043]
[1750189503713,1.00423637,649.15,648.75,1.043]
[1750189503914,1.15418059,649.46,648.75,1.043]
[1750189504114,2.15825625,649.45,648.75,1.043]
[1750189504315,1.00407566,649.44,648.75,1.043]
[1750189504615,1.00407566,649.43,648.75,1.043]